bitfinex/quotes_ETHUSD_20250620
["timestamp","ask_amount","ask_price","bid_price","bid_amount"]
[1750445470015,1.18679918,2425.1,2425.0,4.12371134]
[1750445470016,0.7643,2425.1,2425.0,4.12371134]
[1750445470330,18.8522,2425.1,2425.0,4.12371134]
[1750445471702,10.0,2424.9,2424.1,0.7737]
[1750445472048,0.0622,2424.7,2424.2,0.7737]
[1750445472194,1.831,2424.6,2424.4,4.12465855]
[1750445472396,6.959,2424.5,2424.4,4.12465855]
[1750445473494,10.0,2425.0,2424.8,4.123996]
[1750445473690,4.18515694,2425.5,2425.0,4.1236127]
[1750445474009,1.8932,2425.2,2425.1,4.12354129]
[1750445474731,1.8932,2425.2,2425.0,4.12361414]
[1750445475020,1.8932,2425.2,2425.1,4.12354129]
[1750445475435,1.831,2425.2,2425.1,4.12354129]
[1750445475926,1.8932,2425.2,2425.0,4.12362142]
[1750445476127,1.8932,2425.2,2425.1,4.12354129]
[1750445476424,8.8522,2425.2,2425.1,4.12354129]
[1750445477295,8.8522,2425.2,2425.0,2.67999919]
[1750445477627,8.8522,2425.2,2425.1,4.12354129]
[1750445477996,8.8522,2425.2,2425.0,6.80361494]
[1750445478195,8.8522,2425.2,2425.1,4.12354129]
[1750445478428,9.23631562,2425.2,2425.1,4.12354129]
[1750445479397,9.23631256,2425.2,2425.1,4.12354129]
[1750445480326,9.23631256,2425.2,2425.0,6.80361857]
[1750445480534,0.0622,2424.9,2424.7,2.67999919]
[1750445480698,6.959,2424.8,2424.7,4.12422155]
[1750445480901,7.46953905,2424.8,2424.7,4.12422155]
[1750445481128,7.46954598,2424.8,2424.7,4.12422155]
[1750445481317,7.46954169,2424.8,2424.6,4.12430554]
[1750445481641,1.8932,2424.7,2424.5,4.12453244]
[1750445481816,1.8932,2424.7,2424.6,4.12439165]
[1750445482099,1.831,2424.7,2424.6,4.12439165]
[1750445485554,4.12309878,2425.4,2424.6,4.12439165]
[1750445485555,0.8043,2425.3,2424.7,0.8087]
[1750445485848,2.535,2425.4,2424.7,0.8087]
[1750445485849,9.24642711,2425.2,2425.1,4.12354129]
[1750445486038,7.028,2425.7,2425.5,4.12282233]
[1750445486333,7.028,2425.7,2425.6,4.12269129]
[1750445486731,1.852,2425.9,2425.8,4.12235138]
[1750445487298,1.852,2425.9,2425.8,5.44202391]
[1750445487733,1.852,2425.9,2425.8,5.48324291]
[1750445488400,1.852,2425.9,2425.8,4.12235138]
[1750445488599,1.914,2425.9,2425.5,0.7854]
[1750445488826,1.852,2425.9,2425.6,4.12258212]
[1750445489104,1.852,2425.9,2425.8,4.12235138]
[1750445489319,1.914,2425.9,2425.8,4.12235138]
[1750445489713,1.914,2425.9,2425.5,4.12283129]
[1750445489714,1.32047956,2426.1,2425.6,4.12269129]
[1750445489917,8.879,2425.9,2425.8,4.12235138]
[1750445491369,1.32047956,2426.1,2426.0,4.12201154]
[1750445491507,12.579,2426.9,2426.0,0.83681555]
[1750445491711,12.641,2426.9,2426.8,4.12065271]
[1750445491907,13.02499498,2426.9,2426.8,4.12065271]
[1750445492129,20.05399498,2426.9,2426.8,4.12065271]
[1750445492324,12.641,2426.9,2426.7,4.12074236]
[1750445492610,29.67,2426.9,2426.8,4.12065271]
[1750445492824,33.79049268,2426.9,2426.0,3.47559919]
[1750445493031,0.062,2426.8,2426.4,4.12123536]
[1750445493204,8.876,2426.7,2426.5,4.12114957]
[1750445493409,4.1830675,2426.6,2426.0,0.7751]
[1750445493607,0.062,2426.4,2426.1,4.12181837]
[1750445493906,0.062,2426.2,2425.7,4.12251631]
[1750445494106,8.882,2426.1,2426.0,4.12201154]
[1750445494337,8.881,2426.1,2426.0,4.12201154]
[1750445495206,0.7684,2426.5,2426.0,4.12201154]
[1750445495538,0.062,2426.5,2426.4,4.12133201]
[1750445495837,8.878,2426.5,2426.4,4.12133201]
[1750445497745,1.851,2426.5,2426.4,4.98682325]
[1750445497951,8.876,2426.5,2426.4,5.76111156]
[1750445498574,1.851,2426.5,2426.4,5.78161156]
[1750445498984,1.851,2426.5,2426.4,8.44111075]
[1750445499635,7.02,2426.6,2426.5,4.12116216]
[1750445500074,7.02,2426.6,2426.4,4.12122046]
[1750445500075,7.082,2426.6,2426.4,4.12122046]
[1750445500395,7.082,2426.6,2426.5,4.12116216]
[1750445500735,7.02,2426.6,2426.5,4.12116216]
[1750445501260,7.082,2426.6,2426.5,4.12116216]
[1750445501630,0.8339,2426.5,2426.1,6.80176486]
[1750445501835,0.062,2426.3,2426.2,4.1215621]
[1750445503639,0.062,2426.3,2426.1,4.12174468]
[1750445503840,7.021,2426.2,2426.1,4.12174468]
[1750445504058,7.021,2426.2,2425.5,2.67999919]
[1750445504059,0.062,2426.1,2425.5,2.67999919]
[1750445504262,7.083,2426.2,2426.1,4.12184163]
[1750445506572,7.8739,2426.2,2426.1,4.12184163]
[1750445506769,0.062,2426.0,2425.7,4.12244124]
[1750445506969,1.851,2425.9,2425.8,4.12222665]
[1750445507144,1.913,2425.9,2425.8,4.12222665]
[1750445507838,8.924,2425.9,2425.8,4.12222665]
[1750445508338,8.862,2425.9,2425.8,4.12222665]
[1750445508861,10.062,2426.1,2425.7,4.12244124]
[1750445508862,0.062,2426.1,2426.0,4.12201154]
[1750445509069,8.918,2426.1,2426.0,4.12201154]
[1750445509538,0.062,2426.1,2426.0,4.12201154]
[1750445509739,0.879,2426.3,2426.2,4.12167175]
[1750445509937,20.11558201,2426.3,2426.2,4.12167175]
[1750445510148,20.11558126,2426.3,2426.2,4.12167175]
[1750445510347,9.23681903,2426.3,2425.8,0.7867]
[1750445510576,0.817,2426.7,2426.2,4.12167175]
[1750445510737,2.2347934,2426.6,2426.5,4.12116216]
[1750445510942,0.817,2427.3,2427.2,4.11997363]
[1750445511142,10.12367443,2427.3,2427.1,4.12006492]
[1750445511366,7.39367443,2427.2,2427.1,4.12006492]
[1750445511565,7.39367443,2427.2,2426.5,4.12116216]
[1750445511566,0.817,2426.9,2426.3,0.7867]
[1750445511782,0.062,2426.7,2426.3,2.67999919]
[1750445512073,0.062,2426.7,2426.4,4.12124412]
[1750445512386,0.062,2426.6,2426.5,4.12116216]
[1750445513267,0.44697595,2426.6,2426.5,4.12116216]
[1750445513441,0.062,2426.8,2426.7,4.12081577]
[1750445513642,8.92,2426.8,2426.6,4.12091233]
[1750445513842,0.38497088,2426.7,2426.6,4.12091233]
[1750445514540,8.858,2426.8,2426.5,4.12116216]
[1750445514740,0.44567566,2426.7,2426.4,4.12124485]
[1750445514952,0.3849848,2426.6,2426.4,4.12124485]
[1750445515181,0.0607,2426.7,2426.6,4.12099233]
[1750445515380,0.44568879,2426.7,2426.6,4.12099233]
[1750445515583,0.44570223,2426.7,2426.5,4.12106389]
[1750445515745,0.38500223,2426.6,2426.5,4.12106389]
[1750445516710,8.858,2426.8,2426.7,4.12082251]
[1750445516885,11.71918849,2426.8,2426.7,4.12082251]
[1750445517179,11.71918849,2426.8,2426.6,4.12090601]
[1750445517378,0.44588849,2426.7,2426.6,4.12090601]
[1750445517783,0.38518849,2426.7,2426.6,4.92950601]
[1750445517987,1.847,2427.2,2427.1,4.12014338]
[1750445518284,9.22910472,2427.2,2427.1,4.92874338]
[1750445518448,1.847,2427.2,2427.1,4.92874338]
[1750445518643,1.847,2427.2,2427.1,6.10369505]
[1750445518888,0.0607,2427.1,2427.0,4.12021974]
[1750445519359,8.9037,2427.2,2427.1,4.12014338]
[1750445519885,8.843,2427.2,2427.1,4.12014338]
[1750445520086,0.0607,2427.5,2427.4,4.11963417]
[1750445520285,18.9087,2427.5,2427.4,4.11963417]
[1750445520694,18.9087,2427.5,2427.3,4.11970521]
[1750445520859,0.0607,2427.4,2427.3,4.11966222]
[1750445522298,0.0607,2427.4,2427.2,4.11993135]
[1750445522455,0.0607,2427.4,2427.3,4.11980389]
[1750445523362,7.0587,2427.4,2427.3,4.11980389]
[1750445523889,6.998,2427.4,2427.3,4.11980389]
[1750445524459,7.0587,2427.4,2427.3,4.11980389]
[1750445524661,6.998,2427.4,2427.3,4.11980389]
[1750445526262,7.0587,2427.4,2427.3,4.11980389]
[1750445526992,6.998,2427.4,2427.3,4.11980389]
[1750445527308,10.0607,2427.7,2427.6,4.11929477]
[1750445527515,18.8957,2427.7,2427.6,4.11929477]
[1750445527809,8.832,2427.7,2427.6,4.11929477]
[1750445528199,1.846,2427.7,2427.6,4.11929477]
[1750445528506,8.8927,2427.7,2427.6,4.11929477]
[1750445528711,8.8907,2427.7,2427.6,4.11929477]
[1750445529520,18.8907,2427.7,2427.5,4.11930075]
[1750445529677,0.0607,2427.6,2427.5,4.11939464]
[1750445530578,0.0607,2427.6,2427.5,4.11946446]
[1750445531010,18.83,2427.7,2427.6,4.11929477]
[1750445531322,18.8907,2427.7,2427.6,4.11929477]
[1750445531609,18.83,2427.7,2427.5,4.11936706]
[1750445531821,0.0607,2427.6,2427.5,4.11936706]
[1750445531975,2.5367,2427.6,2427.5,4.11936706]
[1750445533521,1.846,2427.7,2427.6,4.11929477]
[1750445533719,8.825,2427.7,2427.6,6.79929396]
[1750445540204,1.846,2427.7,2427.6,6.79929396]
[1750445540406,8.806,2427.7,2427.6,6.79929396]
[1750445540636,8.806,2427.7,2427.6,8.08305925]
[1750445542747,8.806,2427.7,2427.6,2.67999919]
[1750445542948,0.0607,2427.6,2427.4,2.67999919]
[1750445543154,10.2195,2427.5,2427.2,4.11995657]
[1750445543464,0.0607,2427.4,2427.0,2.67999919]
[1750445543619,0.0607,2427.2,2427.1,4.12012694]
[1750445543820,7.0247,2427.2,2427.1,4.12012694]
[1750445544042,7.40959055,2427.2,2427.1,4.12012694]
[1750445544241,9.25559055,2427.2,2427.1,4.12014338]
[1750445544548,8.8707,2427.2,2427.1,4.12014338]
[1750445545419,9.25583272,2427.2,2427.1,4.12014338]
[1750445546250,9.25583197,2427.2,2427.1,4.12014338]
[1750445546820,9.25583739,2427.2,2427.1,4.12014338]
[1750445547354,8.8707,2427.2,2427.1,4.12014338]
[1750445547517,9.25583836,2427.2,2427.1,4.12014338]
[1750445548123,9.2558444,2427.2,2427.1,4.12014338]
[1750445548531,9.25584434,2427.2,2427.1,4.12014338]
[1750445549019,8.8707,2427.2,2427.1,4.12014338]
[1750445549220,9.25584455,2427.2,2427.1,4.12014338]
[1750445549549,8.8707,2427.2,2427.1,4.12014338]
[1750445549730,9.25583137,2427.2,2427.1,4.12014338]
[1750445551420,9.25582701,2427.2,2427.1,4.12014338]
[1750445552146,9.25580544,2427.2,2427.1,4.12014338]
[1750445552349,9.25580545,2427.2,2427.1,4.12014338]
[1750445553156,9.25579744,2427.2,2427.1,4.12014338]
[1750445554852,9.19509744,2427.2,2427.0,4.12027459]
[1750445555029,0.0581,2427.1,2427.0,4.12027459]
[1750445555236,8.8491,2427.1,2427.0,4.12027459]
[1750445555437,8.791,2427.1,2427.0,4.12027459]
[1750445555958,0.0581,2427.3,2427.2,4.11997363]
[1750445556158,9.23412721,2427.3,2427.2,4.11997363]
[1750445556454,9.23412721,2427.3,2427.0,4.12026826]
[1750445556652,0.38502721,2427.2,2426.9,2.67999919]
[1750445556965,0.0581,2427.1,2427.0,4.12017121]
[1750445558965,0.0581,2426.9,2426.7,2.67999919]
[1750445559165,0.0581,2426.7,2426.6,2.67999919]
[1750445559341,0.0581,2426.5,2426.3,6.80141766]
[1750445559540,7.4031562,2426.4,2426.3,2.67999919]
[1750445559752,0.0581,2426.3,2426.1,4.12179523]
[1750445559924,1.8891,2426.2,2426.0,2.67999919]
[1750445560129,9.87917841,2426.1,2426.0,2.67999919]
[1750445560455,10.63407841,2426.1,2426.0,2.67999919]
[1750445560634,0.0581,2426.0,2425.7,4.12252004]
[1750445560829,0.0581,2425.9,2425.7,4.12252004]
[1750445561034,7.0181,2425.8,2425.7,4.12252004]
[1750445561481,2.5341,2426.0,2425.9,4.12218145]
[1750445561808,0.0581,2425.9,2425.8,4.12235138]
[1750445562069,11.267,2426.0,2425.7,4.12248494]
[1750445562070,0.7549,2426.1,2425.7,4.12248494]
[1750445562278,8.791,2426.0,2425.9,4.12218145]
[1750445564591,10.0581,2426.5,2426.2,4.12165368]
[1750445564739,0.0581,2426.3,2426.2,4.12165368]
[1750445565062,0.0581,2426.3,2426.0,4.12186085]
[1750445565270,0.0581,2426.3,2426.1,4.12182918]
[1750445565682,0.0581,2426.3,2425.8,0.7862]
[1750445565683,0.0581,2426.3,2426.0,4.12191059]
[1750445565889,10.0,2426.3,2425.9,4.12208941]
[1750445566179,0.0581,2426.0,2425.7,4.12239148]
[1750445566391,0.0581,2425.8,2425.7,4.12239148]
[1750445566884,0.0581,2425.9,2425.8,4.12235138]
[1750445567052,8.8501,2425.9,2425.8,4.12235138]
[1750445568054,8.792,2425.9,2425.8,4.12235138]
[1750445568383,0.8675,2426.1,2426.0,4.12201154]
[1750445568553,8.8501,2426.1,2426.0,4.12201154]
[1750445570982,8.792,2426.1,2426.0,4.12201154]
[1750445571183,0.0581,2426.3,2426.2,4.12167175]
[1750445571389,0.0581,2426.3,2426.1,4.12174932]
[1750445571680,8.793,2426.2,2426.1,4.12174932]
[1750445577121,1.83,2426.5,2426.2,0.8191]
[1750445577263,1.83,2426.5,2426.4,4.12133201]
[1750445580168,10.717,2426.7,2426.6,4.12099233]
[1750445580368,19.508,2426.7,2426.6,6.80099152]
[1750445580581,1.83,2426.7,2426.6,9.12443574]
[1750445580803,1.83,2426.7,2426.6,6.46493655]
[1750445581010,1.83,2426.7,2426.6,6.44443655]
[1750445584130,1.83,2426.7,2426.6,4.12099233]
[1750445584293,0.0568,2427.0,2426.8,4.12065271]
[1750445584632,8.789,2426.9,2426.8,4.12065271]
[1750445584928,8.8458,2426.9,2426.8,4.12065271]
[1750445586288,12.90956425,2426.9,2426.3,3.47449919]
[1750445586486,0.0568,2426.6,2426.3,6.80147687]
[1750445586696,7.0158,2426.5,2426.4,6.80116723]
[1750445587290,0.779,2426.4,2425.8,3.45159919]
[1750445587494,0.0568,2426.2,2425.6,6.80260462]
[1750445587727,7.0148,2426.1,2426.0,4.12201154]
[1750445589688,6.958,2426.1,2426.0,4.12201154]
[1750445589887,1.83,2426.2,2426.1,4.12184163]
[1750445590108,0.0568,2426.5,2426.4,4.12119025]
[1750445590302,9.22861957,2426.5,2426.4,4.12119025]
[1750445590521,9.61243514,2426.5,2426.4,4.12119025]
[1750445590929,2.59763514,2426.5,2426.4,4.12119025]
[1750445591108,0.0568,2426.4,2426.3,4.12150187]
[1750445591620,0.82467876,2426.4,2426.3,4.12150187]
[1750445591860,0.44078188,2426.4,2426.3,4.12150187]
[1750445592117,0.0568,2426.4,2426.3,4.12150187]
[1750445592331,0.82468591,2426.4,2426.3,4.12150187]
[1750445592494,0.44068798,2426.4,2426.3,4.12150187]
[1750445592701,0.0568,2426.3,2426.1,4.12176758]
[1750445593027,0.0568,2426.1,2426.0,4.12189034]
[1750445593249,0.0568,2426.0,2425.6,4.12260323]
[1750445593410,0.0568,2425.8,2425.2,4.94885871]
[1750445593728,0.0568,2425.5,2425.4,4.12303125]
[1750445594087,0.0568,2425.8,2425.5,4.12286126]
[1750445594286,0.38378368,2425.7,2425.6,4.12265056]
[1750445594487,8.853,2425.7,2425.6,4.12263007]
[1750445595597,8.853,2425.7,2425.6,5.23216886]
[1750445601540,8.853,2425.7,2425.6,4.12263007]
[1750445606098,10.721,2426.3,2426.0,4.12201154]
[1750445606376,8.819,2426.1,2426.0,4.12201154]
[1750445606579,8.879,2426.1,2426.0,4.12201154]
[1750445607050,8.88,2426.1,2426.0,4.12201154]
[1750445607934,8.82,2426.1,2426.0,4.12201154]
[1750445608136,8.82,2426.1,2426.0,5.02731653]
[1750445608886,10.721,2426.3,2426.2,4.12167175]
[1750445610460,10.781,2426.3,2426.2,4.12167175]
[1750445610673,19.601,2426.3,2426.2,4.12167175]
[1750445611332,20.4318,2426.3,2426.2,4.12167175]
[1750445612034,22.8478,2426.3,2426.1,4.12184163]
[1750445612235,20.4318,2426.3,2426.2,4.12167175]
[1750445613878,21.20204323,2426.3,2426.2,4.12167175]
[1750445614081,21.20202174,2426.3,2426.2,4.12167175]
[1750445614383,20.30221245,2426.3,2426.2,4.94602309]
[1750445614591,19.532,2426.3,2426.2,4.94602309]
[1750445614997,10.721,2426.3,2426.2,14.94602309]
[1750445615163,1.842,2426.4,2426.3,14.12150187]
[1750445615362,8.811,2426.4,2426.3,17.44043853]
[1750445615563,1.842,2426.4,2426.3,17.44043853]
[1750445615767,8.811,2426.4,2426.3,17.44043853]
[1750445616492,8.812,2426.4,2426.3,17.44043853]
[1750445618823,0.8187,2426.9,2426.4,4.12133201]
[1750445619024,1.842,2426.5,2426.4,15.94779401]
[1750445619318,0.06,2426.8,2426.7,4.12082251]
[1750445619502,9.63529776,2426.8,2426.7,4.12082251]
[1750445619873,2.61229776,2426.8,2426.7,4.12082251]
[1750445620072,9.57329776,2426.8,2426.7,14.98620564]
[1750445620281,8.803,2426.8,2426.7,14.94499971]
[1750445620576,1.842,2426.8,2426.7,14.94499971]
[1750445620777,12.564,2427.2,2427.1,14.12014338]
[1750445620989,19.527,2427.2,2427.1,4.12014338]
[1750445621198,19.587,2427.2,2427.1,4.12014338]
[1750445621372,19.527,2427.2,2427.1,4.12014338]
[1750445621574,10.722,2427.2,2427.1,4.12014338]
[1750445621885,1.842,2427.2,2427.1,5.01991491]
[1750445622115,8.803,2427.2,2427.1,5.01991491]
[1750445624022,8.803,2427.2,2427.1,4.12014338]
[1750445624346,8.863,2427.2,2427.1,4.12014338]
[1750445625127,8.803,2427.2,2427.1,4.12014338]
[1750445626048,8.863,2427.2,2427.1,4.12014338]
[1750445626361,8.803,2427.2,2427.1,4.12014338]
[1750445627052,8.863,2427.2,2427.1,4.12014338]
[1750445627553,8.803,2427.2,2427.1,4.12014338]
[1750445628051,8.863,2427.2,2427.1,4.12014338]
[1750445630566,8.803,2427.2,2427.1,4.94418491]
[1750445631326,8.803,2427.2,2427.1,4.12014338]
[1750445632043,1.842,2427.4,2427.3,4.11980389]
[1750445632575,8.86,2427.4,2427.3,4.11980389]
[1750445633761,8.8,2427.4,2427.3,4.11980389]
[1750445634161,8.86,2427.4,2427.3,4.11980389]
[1750445635254,1.842,2427.4,2427.3,4.11980389]
[1750445635476,8.8,2427.4,2427.3,4.92740736]
[1750445635641,8.8605,2427.4,2427.3,4.11980389]
[1750445636474,9.6187,2427.4,2427.2,4.11993153]
[1750445636770,0.0605,2427.3,2427.2,4.11993153]
[1750445637087,0.0605,2427.3,2426.8,3.47729919]
[1750445637287,0.0605,2427.3,2427.2,4.11997363]
[1750445638088,0.0605,2427.3,2427.1,4.1200671]
[1750445638257,0.0605,2427.3,2427.2,4.11997363]
[1750445638462,9.6792,2427.4,2427.3,4.11980389]
[1750445638957,9.6187,2427.4,2427.2,4.11987377]
[1750445639158,0.0605,2427.3,2427.2,4.11987377]
[1750445641354,0.0605,2427.3,2427.1,4.12003944]
[1750445641802,12.0947,2427.4,2427.2,4.11997363]
[1750445641964,0.0605,2427.3,2427.2,4.11997363]
[1750445642722,1.829,2427.3,2427.2,4.94398117]
[1750445643010,8.786,2427.3,2427.2,4.94398117]
[1750445644396,8.8465,2427.3,2427.2,4.11997363]
[1750445645189,9.61633378,2427.3,2427.2,4.11997363]
[1750445645522,9.55584396,2427.3,2427.1,4.12004267]
[1750445645708,8.8465,2427.3,2427.2,4.11997363]
[1750445645903,9.61634659,2427.3,2427.2,4.11997363]
[1750445646415,9.61634652,2427.3,2427.2,4.11997363]
[1750445647026,9.61669066,2427.3,2427.2,4.11997363]
[1750445648016,8.8465,2427.3,2427.2,4.11997363]
[1750445648195,9.61703726,2427.3,2427.2,4.11997363]
[1750445648399,9.61708047,2427.3,2427.2,4.11997363]
[1750445648745,1.829,2427.6,2427.5,4.11946446]
[1750445648947,11.5439,2428.1,2428.0,4.11861614]
[1750445649150,20.27643928,2428.1,2428.0,4.11861614]
[1750445649318,13.32043928,2428.1,2428.0,6.79861533]
[1750445649517,2.59943928,2428.1,2428.0,8.66315135]
[1750445649740,0.38521964,2428.1,2428.0,8.68365135]
[1750445650055,0.8229,2428.8,2428.0,8.68365135]
[1750445650056,0.0605,2428.8,2428.7,4.11731148]
[1750445650205,8.01902769,2428.8,2428.7,4.11742907]
[1750445650399,8.01900821,2428.8,2428.7,4.11742907]
[1750445650836,7.78742822,2428.8,2428.7,4.11742907]
[1750445651147,8.01900668,2428.8,2428.7,4.11742907]
[1750445651738,7.78743811,2428.8,2428.7,4.11742907]
[1750445652034,7.3393087,2428.8,2428.7,4.11742907]
[1750445652258,7.3998087,2428.8,2428.7,4.11742907]
[1750445652472,7.3393087,2428.8,2428.6,4.11751453]
[1750445652624,0.0605,2428.7,2428.6,4.11751453]
[1750445653136,0.0605,2428.7,2428.5,4.11770756]
[1750445653822,0.0605,2428.7,2428.6,4.11759861]
[1750445654030,0.0605,2428.8,2428.7,4.1173222]
[1750445654364,7.39870079,2428.8,2428.7,4.1173222]
[1750445654562,7.39870082,2428.8,2428.7,4.1173222]
[1750445654868,7.0145,2428.8,2428.7,4.1173222]
[1750445655630,0.0605,2428.7,2428.6,4.11751719]
[1750445657076,0.0605,2428.7,2428.3,2.67999919]
[1750445657222,0.0605,2428.5,2427.7,3.48649919]
[1750445657538,0.7686,2428.1,2427.7,4.11899883]
[1750445657742,6.952,2428.0,2427.5,4.11938302]
[1750445657929,6.952,2428.0,2427.5,4.11939353]
[1750445657930,0.0605,2427.8,2427.5,4.11939353]
[1750445658257,7.0125,2427.7,2427.6,4.11918442]
[1750445659666,0.7686,2428.1,2427.6,0.82386426]
[1750445659863,0.0605,2428.1,2428.0,4.11861614]
[1750445660051,19.22311236,2428.1,2428.0,4.11861614]
[1750445660563,8.779,2428.1,2428.0,4.11861614]
[1750445661746,8.8395,2428.1,2428.0,4.11861614]
[1750445662684,0.8779,2428.0,2427.7,4.11899984]
[1750445662861,0.0605,2427.9,2427.6,4.11922465]
[1750445663157,7.0115,2427.8,2427.6,4.11922465]
[1750445663557,7.0115,2427.8,2427.7,4.11912509]
[1750445664058,6.951,2427.8,2427.7,4.11912509]
[1750445664258,6.951,2427.8,2427.7,5.2109654]
[1750445666396,6.951,2427.8,2427.7,7.89096459]
[1750445667092,0.0564,2427.7,2427.0,0.41542231]
[1750445667271,10.44025959,2427.7,2427.6,4.11929477]
[1750445667474,0.44025959,2427.7,2427.6,4.11929477]
[1750445667658,8.776,2427.7,2427.6,4.11929477]
[1750445669191,0.0564,2427.6,2427.5,4.11935346]
[1750445669354,8.776,2427.7,2427.6,4.11917399]
[1750445669355,1.826,2427.7,2427.6,4.11917399]
[1750445669549,8.776,2427.7,2427.6,4.11917399]
[1750445670068,8.8324,2427.7,2427.6,4.11917399]
[1750445670265,8.776,2427.7,2427.6,4.11917399]
[1750445672376,30.0,2427.6,2426.0,0.7577]
[1750445672578,0.0564,2426.8,2426.0,0.7577]
[1750445672782,7.2094,2426.7,2426.4,4.12126508]
[1750445673093,7.153,2426.7,2426.5,4.12107347]
[1750445673250,0.0564,2426.6,2426.5,4.12107347]
[1750445673450,7.153,2426.7,2426.6,4.12099233]
[1750445673688,7.153,2426.7,2426.5,4.12107347]
[1750445673689,0.8529,2426.9,2426.7,4.12068164]
[1750445673889,2.476,2427.3,2426.9,4.12037177]
[1750445673890,0.8529,2427.3,2426.9,4.12037177]
[1750445674093,14.76791414,2428.1,2426.8,0.0412051]
[1750445674094,7.147,2427.2,2427.1,4.12014338]
[1750445674395,7.154,2427.2,2427.1,4.12014338]
[1750445674907,0.0564,2427.4,2427.2,4.11995881]
[1750445675091,7.153,2427.3,2427.2,4.11995881]
[1750445675268,7.2094,2427.3,2427.2,4.11995881]
[1750445675467,5.2369,2427.5,2427.3,4.11977268]
[1750445675707,7.2084,2427.4,2427.2,4.1198815]
[1750445676497,7.15,2427.3,2427.2,4.1198815]
[1750445676701,7.2064,2427.3,2427.2,4.1198815]
[1750445677784,7.2064,2427.3,2427.1,4.12005469]
[1750445677971,7.2064,2427.3,2426.6,0.7577]
[1750445678310,9.626,2427.3,2426.9,4.12046555]
[1750445678473,0.0564,2427.2,2426.7,2.67999919]
[1750445678676,0.0564,2427.0,2426.8,4.12060669]
[1750445678917,7.146,2426.9,2426.8,4.12060669]
[1750445679127,7.2024,2426.9,2426.8,4.12060669]
[1750445679587,7.2024,2426.9,2426.7,2.67999919]
[1750445679783,7.2024,2426.9,2426.8,4.12065271]
[1750445680002,7.2024,2426.9,2426.7,6.80073506]
[1750445680211,0.0564,2426.8,2426.7,2.67999919]
[1750445680369,0.0564,2426.8,2426.7,4.12082251]
[1750445681386,7.2024,2426.9,2426.7,4.12082251]
[1750445681784,7.2024,2426.9,2426.7,4.12069803]
[1750445682209,0.0564,2426.8,2426.7,4.12069803]
[1750445684180,0.0564,2426.8,2426.7,6.80069722]
[1750445686616,0.0564,2426.8,2426.7,2.67999919]
[1750445686789,0.0564,2426.8,2426.7,6.8008217]
[1750445687607,0.819,2426.8,2426.7,2.67999919]
[1750445689520,0.819,2426.8,2426.7,6.8008217]
[1750445690023,0.819,2426.8,2426.5,4.12107984]
[1750445690024,0.7626,2426.8,2426.6,4.12089511]
[1750445690227,0.819,2426.8,2426.7,4.12082251]
[1750445691320,7.915,2426.8,2426.7,4.12082251]
[1750445691634,7.8586,2426.8,2426.6,4.12092603]
[1750445691927,2.5324,2426.7,2426.6,4.12092603]
[1750445692101,2.476,2426.7,2426.4,6.80126159]
[1750445692318,0.0564,2426.6,2426.4,6.80126159]
[1750445692513,7.1474,2426.5,2426.4,6.80126159]
[1750445693119,7.1474,2426.5,2426.4,2.67999919]
[1750445693409,0.0564,2426.3,2426.2,6.80154706]
[1750445693625,0.0564,2426.3,2426.2,4.12154787]
[1750445694231,7.089,2426.3,2426.2,4.98722301]
[1750445694443,0.0564,2426.8,2426.7,4.12082251]
[1750445694609,7.094,2426.8,2426.7,4.1206759]
[1750445694809,7.1547,2426.8,2426.7,4.1206759]
[1750445695705,0.0607,2426.8,2426.7,4.12082251]
[1750445695908,7.1557,2426.8,2426.7,4.12082251]
[1750445696148,8.653415,2426.8,2426.6,4.12089568]
[1750445696349,0.0607,2426.7,2426.6,4.12089568]
[1750445696548,3.24605974,2426.7,2426.4,2.67999919]
[1750445696724,2.5367,2426.5,2426.4,4.12126463]
[1750445697043,3.30682025,2426.5,2426.4,4.12126463]
[1750445697608,3.30661794,2426.5,2426.4,4.12126463]
[1750445698321,2.92166404,2426.5,2426.4,4.12126463]
[1750445698644,3.30662466,2426.5,2426.4,4.12126463]
[1750445699012,2.92166233,2426.5,2426.4,4.12126463]
[1750445699543,9.77136749,2426.5,2426.4,4.12126463]
[1750445699710,9.001,2426.5,2426.4,4.12126463]
[1750445699911,9.38637421,2426.5,2426.4,4.12126463]
[1750445700133,9.38638493,2426.5,2426.4,4.12126463]
[1750445700334,0.38538493,2426.5,2426.4,5.75104019]
[1750445700538,0.38538493,2426.5,2426.4,5.79224844]
[1750445700539,7.086,2426.5,2426.4,5.79224844]
[1750445700740,7.086,2426.5,2426.4,5.75104019]
[1750445702047,10.0,2427.0,2426.8,4.12065271]
[1750445702248,1.909,2427.2,2427.1,4.12014338]
[1750445702546,0.77061278,2427.2,2427.1,4.12014338]
[1750445702755,7.85961278,2427.2,2427.1,4.12014338]
[1750445702955,7.85950735,2427.2,2427.1,4.12014338]
[1750445703114,7.47418549,2427.2,2427.1,4.12014338]
[1750445703316,0.77037098,2427.2,2427.1,4.12014338]
[1750445703613,7.47318207,2427.2,2427.1,5.70509724]
[1750445704347,10.718,2427.4,2427.3,4.11980389]
[1750445704513,0.0607,2427.3,2427.2,4.11996154]
[1750445704711,0.83106216,2427.3,2427.2,4.11996154]
[1750445705355,0.83107803,2427.3,2427.0,2.67999919]
[1750445705530,0.0607,2427.1,2427.0,2.67999919]
[1750445705726,10.39007803,2427.1,2427.0,6.80031233]
[1750445705955,10.39040738,2427.1,2427.0,6.80031233]
[1750445706250,10.00505249,2427.1,2427.0,6.80031233]
[1750445706413,10.00506579,2427.1,2427.0,6.80031233]
[1750445706616,10.39043898,2427.1,2427.0,2.67999919]
[1750445706837,10.39044151,2427.1,2427.0,2.67999919]
[1750445707039,2.476,2426.9,2426.7,4.12079619]
[1750445707258,12.28252656,2426.8,2426.7,4.12079619]
[1750445707473,12.28152278,2426.8,2426.6,4.12089842]
[1750445707636,0.83152278,2426.7,2426.6,4.12089842]
[1750445708054,0.83152278,2426.7,2426.0,4.12197344]
[1750445708055,0.0607,2426.4,2425.8,0.7615]
[1750445708300,0.0607,2426.2,2426.1,4.12171904]
[1750445708587,7.92094306,2426.2,2426.1,4.12171904]